{"text_format":"1","workbook":"xlsx","n_sheets":3,"sheets":["Distance Learning Assessment","Score","Reset"],"not_rendered":{"charts":0,"images":1,"macros":1,"external_links":0,"defined_names":22,"comments":0,"pivot_tables":0},"unopened":[],"bounds":{"document_bytes":16777216,"sheet_cells":100000,"rows_first":2000,"rows_last":500,"rows_between":2000,"halvings":0,"cell_chars":16384,"cell_head_chars":4096},"cells_cut":0,"cells_raw":0,"read":"whole","date_system":"1900"}

{"sheet":"Distance Learning Assessment","index":0,"n_rows":67,"n_cols":21,"rows_kept":67,"cut":false,"hidden":false,"merged":[[10,3,10,14],[5,3,5,14],[6,3,6,14],[7,3,7,14],[8,3,8,14],[9,3,9,14],[11,3,11,14],[12,3,12,14],[73,2,73,15],[69,3,69,14],[15,3,15,14],[13,3,13,14]]}
[]
[]
[]
[null,null,null,"Arkansas Distance Learning Intake Survey"]
[]
[null,null,null,"Discuss each of these questions with your teacher or tutor and click in the box for your best answer.  This will help you and your teacher decide if distance learning is a good choice for you."]
[null,null,null,"Name (List First Middle and Last): ________________________________________________________________"]
[null,null,null,"Instructor's Name:     ___________________________________________________________________________"]
[]
[null,null,null,"Adult Education Program &  Location:     ___________________________________________________________"]
[]
[]
[null,null,null,"Program statement:  _______UACCM_________ Adult Education Center has the right to deny distance education to students who pass this survey if there is cause to believe that the student would be best served in a classroom environment."]
[]
[]
[null,null,null,"You must answer ALL questions for the test to be accurate. Place an X in the appropriate box for each question. When completed, click on Process Button. To reset the test, click on the Reset Button."]
[]
[null,null,"1)","At home, I have a quiet place where I can study for this course.",null,null,null,null,null," Yes ","x"," Maybe ",null," No ",null,null,null,{"$f":"IF(K18=\"X\",3,0)","v":3},{"$f":"IF(M18=\"X\",2,0)","v":0},{"$f":"IF(O18=\"X\",0,0)","v":0}]
[]
[null,null,"2)","I'm someone who gets things done on time.",null,null,null,null,null," Yes ","x"," Maybe ",null," No ",null,null,null,{"$f":"IF(K20=\"X\",3,0)","v":3},{"$f":"IF(M20=\"X\",2,0)","v":0},{"$f":"IF(O20=\"X\",0,0)","v":0}]
[]
[null,null,"3)","When there's something I want, I keep my goal clearly in mind. ",null,null,null,null,null," Yes ","x"," Maybe ",null," No ",null,null,null,{"$f":"IF(K22=\"X\",3,0)","v":3},{"$f":"IF(M22=\"X\",2,0)","v":0},{"$f":"IF(O22=\"X\",0,0)","v":0}]
[]
[null,null,"4)","I have at least 5 hours a week to use for this course.",null,null,null,null,null," Yes ","x"," Maybe ",null," No ",null,null,null,{"$f":"IF(K24=\"X\",3,0)","v":3},{"$f":"IF(M24=\"X\",2,0)","v":0},{"$f":"IF(O24=\"X\",0,0)","v":0}]
[]
[null,null,"5)","I have daily routines that still allow me time to study.",null,null,null,null,null," Yes ","x"," Maybe ",null," No ",null,null,null,{"$f":"IF(K26=\"X\",3,0)","v":3},{"$f":"IF(M26=\"X\",2,0)","v":0},{"$f":"IF(O26=\"X\",0,0)","v":0}]
[]
[null,null,"6)","I have access to technology.",null,null,null,null,null," Yes ","x"," Maybe ",null," No ",null,null,null,{"$f":"IF(K28=\"X\",3,0)","v":3},{"$f":"IF(M28=\"X\",2,0)","v":0},{"$f":"IF(O28=\"X\",0,0)","v":0}]
[]
[null,null,"7)","When asked, I look forward to using a computer.",null,null,null,null,null," Yes ","x"," Maybe ",null," No ",null,null,null,{"$f":"IF(K30=\"X\",3,0)","v":3},{"$f":"IF(M30=\"X\",2,0)","v":0},{"$f":"IF(O30=\"X\",0,0)","v":0}]
[]
[null,null,"8)","When studying, it is not important for me to feel part of a class.",null,null,null,null,null," Yes ",null," Maybe ",null," No ",null,null,null,{"$f":"IF(K32=\"X\",3,0)","v":0},{"$f":"IF(M32=\"X\",2,0)","v":0},{"$f":"IF(O32=\"X\",0,0)","v":0}]
[]
[null,null,"9)","Class discussions are not a high priority for me.",null,null,null,null,null," Yes ",null," Maybe ","x"," No ",null,null,null,{"$f":"IF(K34=\"X\",3,0)","v":0},{"$f":"IF(M34=\"X\",2,0)","v":2},{"$f":"IF(O34=\"X\",0,0)","v":0}]
[]
[null,null,"10)","I can easily figure out instructions and directions by myself.",null,null,null,null,null," Yes ",null," Maybe ","x"," No ",null,null,null,{"$f":"IF(K36=\"X\",3,0)","v":0},{"$f":"IF(M36=\"X\",2,0)","v":2},{"$f":"IF(O36=\"X\",0,0)","v":0}]
[]
[null,null,"11)","I have a smartphone or use technology or video games often.",null,null,null,null,null," Yes ","x"," Maybe ",null," No ",null,null,null,{"$f":"IF(K38=\"X\",3,0)","v":3},{"$f":"IF(M38=\"X\",2,0)","v":0},{"$f":"IF(O38=\"X\",0,0)","v":0}]
[]
[null,null,"12)","I do not need to interact with people face-2-face to understand",null,null,null,null,null," Yes ","x"," Maybe ",null," No ",null,null,null,{"$f":"IF(K40=\"X\",3,0)","v":3},{"$f":"IF(M40=\"X\",2,0)","v":0},{"$f":"IF(O40=\"X\",0,0)","v":0}]
[]
[null,null,"13)","Have you taken any courses in an adult education center in the",null,null,null,null,null," Yes ",null," Maybe ","x"," No ",null,null,null,{"$f":"IF(K42=\"X\",3,0)","v":0},{"$f":"IF(M42=\"X\",2,0)","v":2},{"$f":"IF(O42=\"X\",0,0)","v":0}]
[]
[null,null,"14)","Do you often study alone?",null,null,null,null,null," Yes ","x"," Maybe ",null," No ",null,null,null,{"$f":"IF(K44=\"X\",3,0)","v":3},{"$f":"IF(M44=\"X\",2,0)","v":0},{"$f":"IF(O44=\"X\",0,0)","v":0}]
[]
[null,null,"15)","Does your work schedule make it challenging for you to attend",null,null,null,null,null," Yes ","x"," Maybe ",null," No ",null,null,null,{"$f":"IF(K46=\"X\",3,0)","v":3},{"$f":"IF(M46=\"X\",2,0)","v":0},{"$f":"IF(O46=\"X\",0,0)","v":0}]
[]
[null,null,"16)","Do you learn better by yourself than with a group?",null,null,null,null,null," Yes ","x"," Maybe ",null," No ",null,null,null,{"$f":"IF(K48=\"X\",3,0)","v":3},{"$f":"IF(M48=\"X\",2,0)","v":0},{"$f":"IF(O48=\"X\",0,0)","v":0}]
[]
[null,null,"17)","Is the adult education program more than 10 miles away",null,null,null,null,null," Yes ","x"," Maybe ",null," No ",null,null,null,{"$f":"IF(K50=\"X\",3,0)","v":3},{"$f":"IF(M50=\"X\",2,0)","v":0},{"$f":"IF(O50=\"X\",0,0)","v":0}]
[]
[null,null,"18)","Are self-motivated most of the time?",null,null,null,null,null," Yes ","x"," Maybe ",null," No ",null,null,null,{"$f":"IF(K52=\"X\",3,0)","v":3},{"$f":"IF(M52=\"X\",2,0)","v":0},{"$f":"IF(O52=\"X\",0,0)","v":0}]
[]
[null,null,"19)","Do you interact with people through social media (Facebook,",null,null,null,null,null," Yes ","x"," Maybe ",null," No ",null,null,null,{"$f":"IF(K54=\"X\",3,0)","v":3},{"$f":"IF(M54=\"X\",2,0)","v":0},{"$f":"IF(O54=\"X\",0,0)","v":0}]
[]
[null,null,"20)","Do you have an email account?",null,null,null,null,null," Yes ","x"," Maybe ",null," No ",null,null,null,{"$f":"IF(K56=\"X\",3,0)","v":3},{"$f":"IF(M56=\"X\",2,0)","v":0},{"$f":"IF(O56=\"X\",0,0)","v":0}]
[]
[null,null,"21)","Do you feel comfortable calling or emailing your instructor",null,null,null,null,null," Yes ","x"," Maybe ",null," No ",null,null,null,{"$f":"IF(K58=\"X\",3,0)","v":3},{"$f":"IF(M58=\"X\",2,0)","v":0},{"$f":"IF(O58=\"X\",0,0)","v":0}]
[]
[null,null,"22)","Do you have a phone?",null,null,null,null,null," Yes ","x"," Maybe ",null," No ",null,null,null,{"$f":"IF(K60=\"X\",3,0)","v":3},{"$f":"IF(M60=\"X\",2,0)","v":0},{"$f":"IF(O60=\"X\",0,0)","v":0}]
[]
[null,null,"23)","Can you commit to the 12 hours of face to face time needed to",null,null,null,null,null," Yes ","x"," Maybe ",null," No ",null,null,null,{"$f":"IF(K62=\"X\",3,0)","v":3},{"$f":"IF(M62=\"X\",2,0)","v":0},{"$f":"IF(O62=\"X\",0,0)","v":0}]
[]
[null,null,"24)","Will you complete the assessments associated with your class?",null,null,null,null,null," Yes ","x"," Maybe ",null," No ",null,null,null,{"$f":"IF(K64=\"X\",3,0)","v":3},{"$f":"IF(M64=\"X\",2,0)","v":0},{"$f":"IF(O64=\"X\",0,0)","v":0}]
[]
[null,null,"25)","Will you complete the follow-up survey at the end of your class?",null,null,null,null,null," Yes ","x"," Maybe ",null," No ",null,null,null,{"$f":"IF(K66=\"X\",3,0)","v":3},{"$f":"IF(M66=\"X\",2,0)","v":0},{"$f":"IF(O66=\"X\",0,0)","v":0}]
[null,null,null," ",null,null,null,null,null,null,null,null,null,null,null,null,null,{"$f":"SUM(R18:R66)","v":63},{"$f":"SUM(S18:S66)","v":6},{"$f":"SUM(T18:T66)","v":0},{"$f":"SUM(R67:T67)","v":69}]

{"sheet":"Score","index":1,"n_rows":12,"n_cols":9,"rows_kept":12,"cut":false,"hidden":false,"merged":[[11,3,11,14],[12,3,12,14],[5,3,5,14],[8,3,8,14],[9,3,9,14],[10,3,10,14]]}
[]
[]
[]
[null,null,null,"Distance Learning Student Assessment"]
[]
[null,null,null,"Your Score"]
[null,null,null,null,null,null,null,null,{"$f":"'Distance Learning Assessment'!$U$67","v":69}]
[]
[null,null,null,"If you scored between 60 and 75, you can begin a distance learning class.  "]
[null,null,null,"If you scored between 48 and 59, you have great potential to be a good distance learning student, but need to push yourself. Be sure to interact with your instructor whenever you need assistance and visit the program when you need more structured assistance. "]
[null,null,null,"If you scored between 37 and 47, you will need to start in a hybrid Distance Learning class after completing orientation and meeting with the instructor face-2-face every 2 weeks for one month to work on your technical skills. "]
[null,null,null,"If you scored below 37, you will need to attend at least 6 face-2-face class sessions prior to enrolling in a Distance Learning class.  "]

{"sheet":"Reset","index":2,"n_rows":49,"n_cols":11,"rows_kept":49,"cut":false,"hidden":true,"merged":[]}
["At home, I have a quiet place where I can study for this course.",null,null,null,null,null," Yes ",null," Maybe ",null," No "]
[]
["I'm someone who gets things done on time.",null,null,null,null,null," Yes ",null," Maybe ",null," No "]
[]
["When there's something I want, I keep my goal clearly in mind. ",null,null,null,null,null," Yes ",null," Maybe ",null," No "]
[]
["I have at least 5 hours a week to use for this course.",null,null,null,null,null," Yes ",null," Maybe ",null," No "]
[]
["I have daily routines that still allow me time to study.",null,null,null,null,null," Yes ",null," Maybe ",null," No "]
[]
["I have access to technology.",null,null,null,null,null," Yes ",null," Maybe ",null," No "]
[]
["When asked, I look forward to using a computer.",null,null,null,null,null," Yes ",null," Maybe ",null," No "]
[]
["When studying, it is not important for me to feel part of a class.",null,null,null,null,null," Yes ",null," Maybe ",null," No "]
[]
["Class discussions are not a high priority for me.",null,null,null,null,null," Yes ",null," Maybe ",null," No "]
[]
["I can easily figure out instructions and directions by myself.",null,null,null,null,null," Yes ",null," Maybe ",null," No "]
[]
["I have a smartphone or use technology or video games often.",null,null,null,null,null," Yes ",null," Maybe ",null," No "]
[]
["I do not need to interact with people face-2-face to understand",null,null,null,null,null," Yes ",null," Maybe ",null," No "]
[]
["Have you taken any courses in an adult education center in the",null,null,null,null,null," Yes ",null," Maybe ",null," No "]
[]
["Do you often study alone?",null,null,null,null,null," Yes ",null," Maybe ",null," No "]
[]
["Does your work schedule make it challenging for you to attend",null,null,null,null,null," Yes ",null," Maybe ",null," No "]
[]
["Do you learn better by yourself than with a group?",null,null,null,null,null," Yes ",null," Maybe ",null," No "]
[]
["Is the adult education program more than 10 miles away",null,null,null,null,null," Yes ",null," Maybe ",null," No "]
[]
["Are self-motivated most of the time?",null,null,null,null,null," Yes ",null," Maybe ",null," No "]
[]
["Do you interact with people through social media (Facebook,",null,null,null,null,null," Yes ",null," Maybe ",null," No "]
[]
["Do you have an email account?",null,null,null,null,null," Yes ",null," Maybe ",null," No "]
[]
["Do you feel comfortable calling or emailing your instructor",null,null,null,null,null," Yes ",null," Maybe ",null," No "]
[]
["Do you have a phone?",null,null,null,null,null," Yes ",null," Maybe ",null," No "]
[]
["Can you commit to the 12 hours of face to face time needed to",null,null,null,null,null," Yes ",null," Maybe ",null," No "]
[]
["Will you complete the assessments associated with your class?",null,null,null,null,null," Yes ",null," Maybe ",null," No "]
[]
["Will you complete the follow-up survey at the end of your class?",null,null,null,null,null," Yes ",null," Maybe ",null," No "]